[Event "13th Chennai Open 2022"]
[Site "Chennai"]
[Date "2022.06.23"]
[Round "7.5"]
[White "Saravana, Krishnan P."]
[Black "Deepan Chakkravarthy J."]
[Result "1/2-1/2"]
[ECO "B30"]
[WhiteElo "2269"]
[BlackElo "2478"]
[Annotator "TA"]
[PlyCount "99"]
[EventDate "2022.06.19"]
[EventType "swiss"]
[EventCountry "IND"]
[SourceTitle "playchess.com"]
[Source "ChessBase"]
[SourceQuality "1"]
[TimeControl "5400+30"]

{[%evp 11,99,12,25,25,33,20,38,20,33,6,27,0,0,-8,-13,-24,-18,-25,-21,-20,-17,-30,-4,-12,-17,-63,-12,-19,-8,-17,-14,-19,-14,-12,0,-37,0,0,0,0,0,0,4,12,7,0,0,0,0,0,54,35,47,0,0,0,0,0,0,0,0,0,0,0,0,0,0,0,0,0,0,0,0,0,0,0,0,0,0,0,0,0,0,0,0,0,0,0,0,0]} 1. e4 {[%emt 0:00:03]} c5 {[%emt 0:08:38]} 2. Nf3 {[%emt 0:00:08]} Nc6 {[%emt 0:00:35]} 3. Bb5 {[%emt 0:03:36]} e6 {[%emt 0:00:06]} 4. O-O {[%emt 0:00:16]} Nge7 {[%emt 0:00:06]} 5. d4 {[%emt 0:00:30]} cxd4 {[%emt 0:00:11]} 6. Nxd4 {[%emt 0:00:06]} Qb6 {[%emt 0:00:03] 6...Ng6 is the hot move.} 7. Nxc6 {[%emt 0:01:15] B30: Sicilian: 2...Nc6 3 Bb5, lines without ...g6.} bxc6 {[%emt 0:05:37]} 8. Bd3 {[%emt 0:00:07]} Ng6 {[%emt 0:02:59]} 9. Nc3 {[%emt 0:00:15] [#] White is slightly better.} Bd6 $146 {[%emt 0:09:04]} ({Predecessor:} 9... Be7 10. Na4 Qc7 11. c4 c5 12. f4 Bb7 13. Nc3 O-O 14. Qh5 Qd6 15. Qe2 f5 {1-0 (47) Hou,Y (2658)-Muzychuk,M (2544) Chess.com INT 2020}) 10. Kh1 {[%emt 0:00:14]} e5 {[%emt 0:02:58]} (10... Nf4 {is interesting.} 11. Bc4 Be5 12. g3 Ng6) 11. Ne2 {[%emt 0:10:59]} O-O {[%emt 0:01:38]} 12. Ng3 {[%emt 0:03:52]} Bc5 {[%emt 0:01:04]} 13. Nf5 {[%emt 0:10:19]} d5 {[%emt 0:01:28]} 14. Qh5 {[%emt 0:03:53]} Re8 {[%emt 0:08:15]} (14... Bxf2 $2 15. Nxg7 Qd4 16. Nf5 Bxf5 17. exf5 $18 (17. Qxf5 Be3 $16)) 15. Be3 {[%emt 0:07:06]} Bxf5 {[%emt 0:17:10]} 16. Qxf5 {[%emt 0:03:43]} Re6 {[%emt 0:06:14]} 17. Bxc5 {[%emt 0:12:22]} Qxc5 {[%emt 0:00:09]} 18. g3 {[%emt 0:01:46]} (18. Qf3 $11) 18... Qb6 {[%emt 0:05:40]} (18... Rf6 $15 19. Qg4 Rxf2) 19. Qf3 $11 {[%emt 0:01:49]} Rd8 {[%emt 0:02:22]} 20. Qe3 {[%emt 0:02:12]} Qxe3 {[%emt 0:08:33]} 21. fxe3 {[%emt 0:00:05]} Ne7 {[%emt 0:00:05]} 22. Kg1 {[%emt 0:18:31]} h5 {[%emt 0:06:55]} 23. a4 {[%emt 0:06:05]} Rb8 {[%emt 0:02:37]} 24. b3 {[%emt 0:03:56]} g6 {[%emt 0:00:29]} 25. exd5 {[%emt 0:00:38]} cxd5 {[%emt 0:00:25][%cal Bc6d5,Bd5e4][%mdl 32]} 26. e4 {[%emt 0:00:11]} dxe4 {[%emt 0:06:57]} 27. Bc4 {[%emt 0:00:45]} Rc6 {[%emt 0:00:01]} 28. Bxf7+ {[%emt 0:00:54]} Kg7 {[%emt 0:00:03]} 29. Bc4 {[%emt 0:00:31] [#] Rf7+ is the strong threat.} Nf5 $1 {[%emt 0:00:11]} 30. Bd5 {[%emt 0:04:10][%csl LRc6,LRe4]} (30. Rad1 {looks sharper.} Ne3 31. Rd7+ Kh6 32. Rff7) 30... Rc5 {[%emt 0:02:00]} (30... Rxc2 $11 31. Bxe4 Re2) 31. Bxe4 $14 {[%emt 0:00:38]} Nd6 {[%emt 0:00:03]} 32. Rae1 {[%emt 0:03:09]} (32. Bg2 $14 {should be considered.}) 32... Nxe4 $11 {[%emt 0:00:33] The position is equal.} 33. Rxe4 {[%emt 0:00:05]} Rxc2 {[%emt 0:00:02]} 34. Rxe5 {[%emt 0:01:16]} Rxb3 {[%emt 0:00:04][%mdl 4096] [#] Endgame And now ...Rbb2 would win. KRR-KRR} 35. Re7+ {[%emt 0:00:34]} Kh6 {[%emt 0:00:06]} 36. Rf2 $1 {[%emt 0:00:06]} ({Much weaker is} 36. Rxa7 Rbb2 37. Rf3 Rg2+ 38. Kh1 Rxh2+ 39. Kg1 Rbg2+ 40. Kf1 Ra2 $17) 36... Rxf2 {[%emt 0:01:14]} 37. Kxf2 {[%emt 0:00:05] KR-KR} Rb2+ {[%emt 0:00:01]} 38. Kg1 {[%emt 0:00:40]} Ra2 {[%emt 0:00:35]} 39. Rxa7 {[%emt 0:00:18]} Kg5 {[%emt 0:00:13]} 40. Ra6 {[%emt 0:01:15]} h4 {[%emt 0:00:32]} 41. gxh4+ {[%emt 0:01:16]} Kxh4 {[%emt 0:00:02]} 42. a5 {[%emt 0:00:39]} Kh3 {[%emt 0:01:12]} 43. Ra8 {[%emt 0:00:37]} Rg2+ {[%emt 0:00:15]} 44. Kf1 {[%emt 0:00:05]} Ra2 {[%emt 0:00:03]} 45. Kg1 {[%emt 0:00:39]} Rg2+ {[%emt 0:00:04]} 46. Kf1 {[%emt 0:00:03] Threatening mate with Rh8+.} Ra2 {[%emt 0:00:03]} 47. a6 {[%emt 0:01:23] Strongly threatening a7.} Kxh2 {[%emt 0:00:40]} 48. a7 {[%emt 0:00:06] Rh8+ would kill now.} Kg3 {[%emt 0:00:03]} 49. Rg8 {[%emt 0:00:04]} Rxa7 {[%emt 0:00:04]} 50. Rxg6+ {[%emt 0:00:03] Weighted Error Value: White=0.07 (flawless) /Black=0.07 (flawless)} 1/2-1/2

[Event "13th Chennai Open 2022"]
[Site "Chennai"]
[Date "2022.06.23"]
[Round "7.6"]
[White "Ajay Karthikeyan"]
[Black "Baghdasaryan, Vahe"]
[Result "1/2-1/2"]
[ECO "B51"]
[WhiteElo "2436"]
[BlackElo "2267"]
[Annotator "TA"]
[PlyCount "88"]
[EventDate "2022.06.19"]
[EventType "swiss"]
[EventCountry "IND"]
[SourceTitle "playchess.com"]
[Source "ChessBase"]
[SourceQuality "1"]
[TimeControl "5400+30"]

{[%evp 16,88,19,22,20,10,20,13,25,20,22,15,42,24,30,17,27,12,22,6,27,17,47,9,15,0,17,19,17,-7,107,94,115,28,27,29,26,24,29,29,30,0,0,0,25,19,20,18,65,63,68,39,124,58,91,86,143,145,143,135,149,154,292,289,285,270,294,296,291,273,276,280,345,105,133]} 1. e4 {[%emt 0:00:03]} c5 {[%emt 0:02:47]} 2. Nf3 {[%emt 0:00:08]} Nc6 {[%emt 0:03:34]} 3. Bb5 {[%emt 0:00:10]} d6 {[%emt 0:00:39]} 4. O-O {[%emt 0:00:19]} Bd7 {[%emt 0:00:45]} 5. Re1 {[%emt 0:00:05]} Nf6 {[%emt 0:00:31]} 6. c3 {[%emt 0:00:22]} a6 {[%emt 0:00:08]} 7. Bf1 {[%emt 0:00:06]} Bg4 {[%emt 0:00:07]} 8. h3 {[%emt 0:01:28]} Bxf3 {[%emt 0:04:54]} 9. Qxf3 {[%emt 0:00:12]} e6 {[%emt 0:00:12] The modern move. B51: Sicilian: Moscow Variation (3 Bb5+) without 3...Bd7.} 10. d3 {[%emt 0:00:09]} Be7 {[%emt 0:01:16]} 11. Nd2 {[%emt 0:00:05]} O-O {[%emt 0:05:46] The position is equal.} 12. Qg3 {[%emt 0:00:20]} d5 {[%emt 0:01:02]} 13. e5 {[%emt 0:06:51]} Nd7 {[%emt 0:02:29]} 14. Nf3 {[%emt 0:00:16]} Kh8 {[%emt 0:00:11] [#]} 15. h4 $146 {[%emt 0:02:58]} ({Predecessor:} 15. Bd2 Qc7 16. a3 Rac8 17. d4 Na5 18. Rab1 Nc4 19. Bf4 cxd4 20. cxd4 Qb6 21. Bd3 {1-0 (48) Thompson,B (2324)-Cumming,D (2306) ICCF email 2016}) 15... b5 {[%emt 0:09:18]} 16. Qg4 {[%emt 0:16:26]} Rb8 {[%emt 0:07:37]} 17. g3 {[%emt 0:07:04]} d4 {[%emt 0:07:53]} 18. Qe4 {[%emt 0:07:35]} Qc7 {[%emt 0:03:59]} 19. Bg2 {[%emt 0:00:47][%cal Rc3d4]} dxc3 {[%emt 0:01:04]} 20. bxc3 {[%emt 0:00:04]} b4 {[%emt 0:01:44]} 21. Ng5 {[%emt 0:15:50]} Bxg5 {[%emt 0:04:04]} 22. Bxg5 {[%emt 0:00:04]} Rb6 {[%emt 0:14:17]} (22... Rfc8 $1 $11 {remains equal.}) 23. d4 $16 {[%emt 0:14:53]} c4 {[%emt 0:13:26]} 24. d5 {[%emt 0:04:39] White is more active.} (24. Rec1 $16) 24... exd5 $11 {[%emt 0:02:59]} 25. Qxd5 {[%emt 0:00:30] Strongly threatening Be3.} Ncxe5 {[%emt 0:00:30]} 26. Be7 {[%emt 0:00:30][%csl LRb4,LRf8] A strong pair of Bishops.} Re8 {[%emt 0:00:30]} 27. Bxb4 {[%emt 0:00:30] Black must now prevent Ba5.} Rbe6 {[%emt 0:00:30]} 28. Rf1 {[%emt 0:00:30]} Nd3 {[%emt 0:00:30]} 29. Ba5 {[%emt 0:00:30]} Nb6 {[%emt 0:00:30]} (29... Qc8 $5 {[%cal Re6e5]} 30. Bh3 R6e7 $14) 30. Bxb6 {[%emt 0:00:30]} Rxb6 {[%emt 0:00:30]} 31. Rab1 {[%emt 0:00:30] Hoping for Rxb6.} Rxb1 {[%emt 0:00:30]} (31... Rd8 $11 {is more appropriate.} 32. Qa5 Rdb8) 32. Rxb1 $14 {[%emt 0:00:30] Threatens to win with Rb7.} Qa7 {[%emt 0:00:30]} 33. Qf3 {[%emt 0:00:30] aiming for Rb7.} f6 {[%emt 0:00:30] [#]} ({Black should play} 33... Qe7 $14) 34. Bf1 {[%emt 0:00:30]} (34. Qf5 $1 $16) 34... Ne5 {[%emt 0:00:30]} 35. Qd5 $40 {[%emt 0:00:30][%mdl 128] White has strong attack.} Ng4 {[%emt 0:00:30]} (35... Qc7 $142) 36. Qd4 $16 {[%emt 0:00:30]} Qxd4 {[%emt 0:00:30]} 37. cxd4 {[%emt 0:00:30][%mdl 4096] Endgame KRB-KRN} c3 {[%emt 0:00:30]} 38. Rc1 {[%emt 0:00:30]} Rc8 {[%emt 0:00:30]} (38... g5 $16 39. hxg5 (39. Rxc3 gxh4 40. gxh4 Rd8 $16) (39. Bxa6 gxh4 40. gxh4 Rd8 $18) 39... fxg5 40. Rxc3 Rd8) 39. Bxa6 $18 {[%emt 0:00:30]} Rc7 {[%emt 0:00:30]} 40. Bd3 {[%emt 0:00:30]} g6 {[%emt 0:00:30]} 41. a4 {[%emt 0:00:30][%cal Ba2a4,Ba4a5,Ba5a6][%mdl 32]} f5 {[%emt 0:00:30]} 42. a5 {[%emt 0:00:30]} Nf6 {[%emt 0:00:30]} 43. a6 {[%emt 0:00:30]} Nd5 {[%emt 0:00:30] [#]} 44. Ra1 $2 {[%emt 0:00:30]} (44. Rb1 $1 $18 {[%cal Rb1b8]}) 44... Ra7 {[%emt 0:00:30] Weighted Error Value: White=0.19 (very precise) /Black=0.23 (precise)} 1/2-1/2

[Event "13th Chennai Open 2022"]
[Site "Chennai"]
[Date "2022.06.23"]
[Round "7.7"]
[White "Jubin Jimmy"]
[Black "Srihari L R"]
[Result "0-1"]
[ECO "E36"]
[WhiteElo "2259"]
[BlackElo "2404"]
[Annotator "TA"]
[PlyCount "78"]
[EventDate "2022.06.19"]
[EventType "swiss"]
[EventCountry "IND"]
[SourceTitle "playchess.com"]
[Source "ChessBase"]
[SourceQuality "1"]
[TimeControl "5400+30"]

{[%evp 12,78,7,0,0,8,5,0,0,0,0,-17,-16,-164,0,0,0,0,0,-350,-318,-362,-354,-370,-379,-366,-350,-546,-544,-545,-420,-1181,-393,-386,-64,-51,0,-103,-102,-124,-80,-110,0,0,0,0,0,0,42,-180,-174,-430,-304,-1545,-893,-1406,-433,-728,-748,-1484,-685,-686,-657,-782,-779,-859,-846,-780,-777]} 1. d4 {[%emt 0:05:20]} Nf6 {[%emt 0:00:24]} 2. c4 {[%emt 0:00:06]} e6 {[%emt 0:00:07]} 3. Nc3 {[%emt 0:00:06]} Bb4 {[%emt 0:00:08]} 4. Qc2 {[%emt 0:00:05]} O-O {[%emt 0:00:08]} 5. a3 {[%emt 0:00:07]} Bxc3+ {[%emt 0:00:06]} 6. Qxc3 {[%emt 0:00:04]} d5 {[%emt 0:00:10]} 7. Bg5 {[%emt 0:00:04]} c5 {[%emt 0:00:40] E36: Nimzo-Indian: Classical: 4...d5 5 a3.} 8. dxc5 {[%emt 0:03:57] Threatening Bxf6.} d4 {[%emt 0:00:24]} 9. Qg3 {[%emt 0:00:11] 9.Qf3 is the modern continuation.} Nbd7 {[%emt 0:00:10] The position is equal.} 10. Nf3 {[%emt 0:07:35]} e5 $1 {[%emt 0:00:49]} 11. Nxe5 {[%emt 0:14:37]} Nxc5 {[%emt 0:00:47][%cal Oh7h6] [#]} 12. O-O-O $146 {[%emt 0:01:09]} (12. Qf3 $11) ({Predecessor:} 12. Nd3 Nce4 13. Bxf6 Nxf6 14. e3 Re8 15. O-O-O dxe3 16. fxe3 Bg4 17. Rd2 Qb6 18. Be2 Bxe2 19. Rxe2 {½-½ (75) Georgiev,K (2669)-Kosintseva,N (2552) Caleta 2011}) 12... Re8 $2 {[%emt 0:00:25]} (12... Bf5 $1 $19 13. b4 (13. Bh6 $2 Nh5 $19) 13... Nce4) 13. Qf4 $11 {[%emt 0:06:09]} (13. Bh6 $2 Nh5 14. Qg5 Qxg5+ 15. Bxg5 Rxe5 $19) 13... Qa5 {[%emt 0:29:52]} 14. Bxf6 {[%emt 0:03:56]} gxf6 {[%emt 0:03:51]} 15. Nf3 {[%emt 0:12:25][%mdl 8192]} (15. Qxf6 $2 Rxe5 $1 {[%mdl 512]} 16. g4 Nb3+ 17. Kc2 Re6 $19) (15. Nd3 $11) 15... Re4 $1 $19 {[%emt 0:03:36]} 16. Qxf6 {[%emt 0:10:10] [#]} Bf5 $1 {[%emt 0:02:39][%mdl 512]} 17. Rd3 {[%emt 0:07:59][%cal Oc1b1] Against Nb3+} (17. Ng5 $2 Nb3+ 18. Kb1 Rxe2+ 19. Qxf5 Qxf5+ $19) (17. Nd2 Re6) 17... Bg6 {[%emt 0:07:14] aiming for ...Rae8. Active counter play!} 18. Kb1 {[%emt 0:10:00]} Qa4 {[%emt 0:05:28]} 19. Qg5 {[%emt 0:01:31]} (19. Nxd4 $142 Nxd3 20. exd3 Qd1+ 21. Ka2) 19... Rc8 $1 {[%emt 0:01:56]} 20. h4 {[%emt 0:03:24]} h5 {[%emt 0:00:29]} 21. Ne5 {[%emt 0:00:56]} (21. g4 $142 Rxg4 22. Qd2) 21... Nxd3 $2 {[%emt 0:00:22]} (21... Rxe5 22. Qxe5 Qxc4) 22. exd3 {[%emt 0:01:23] [#]} Re1+ {[%emt 0:01:14]} (22... Rxe5 $1 $19 {[%mdl 512]} 23. Qxe5 Re8 24. Qxd4 Re1+ 25. Ka2 Qc2) 23. Ka2 $15 {[%emt 0:00:02]} Kg7 {[%emt 0:05:15]} (23... Qa5 $15 24. f4 Rc6 $1 25. Nxc6 Qxg5 26. hxg5 bxc6) 24. Nf3 {[%emt 0:02:51]} (24. Nxg6 $11 {was the only way to keep the balance.} fxg6 25. Qd5) 24... Rd1 {[%emt 0:04:13] The board is on fire.} 25. Nxd4 {[%emt 0:03:15] Nf5+ is the strong threat.} Qd7 {[%emt 0:01:07] Inhibits Nf5+.} 26. Nb5 {[%emt 0:02:42]} Re8 {[%emt 0:00:30]} (26... f6 $17 27. Qg3 Re8) 27. Nc3 $11 {[%emt 0:00:30]} ({Don't go for} 27. Nxa7 $2 Ree1 28. Nb5 Ra1+ 29. Kb3 Rxf1 $19) 27... Rde1 {[%emt 0:00:30]} ({But not} 27... f6 28. Qf4 Rde1 29. Nd5 $11) 28. Nd5 {[%emt 0:00:30] Black must now prevent Qf6+.} Qf5 $36 {[%emt 0:00:30][%mdl 2048] Inhibits Qf6+. Threatens to win with ...Qxg5. White is under pressure.} 29. Qd2 {[%emt 0:00:30]} b5 {[%emt 0:00:30] Strongly threatening ...bxc4.} 30. Qc3+ {[%emt 0:00:30]} (30. Nc7 $1 $14 {is the one way to stay ahead.}) 30... Qe5 $19 {[%emt 0:00:30]} ({Not} 30... f6 31. g4 Qe5 32. gxh5 Qxc3 33. Nxc3 $17) 31. d4 $2 {[%emt 0:00:30]} (31. Nc7 {was worth a try.} Re7 32. Nxb5) 31... Qf5 {[%emt 0:00:30] ( -> ...Qb1+)} 32. Ne3 $2 {[%emt 0:00:30]} (32. Bd3 Qxd3 33. Rxe1 Rxe1 34. Qxe1 Qxc4+ 35. Ka1 Qxd5 36. Qe5+ Qxe5 37. dxe5) 32... Qb1+ {[%emt 0:00:30] Black is clearly winning.} 33. Kb3 {[%emt 0:00:30] [#]} bxc4+ {[%emt 0:00:30]} (33... R1xe3 $142 $1 {[%mdl 512]} 34. Qxe3 bxc4+ 35. Bxc4 Rxe3+ 36. fxe3 Qxh1) 34. Kb4 {[%emt 0:00:30]} (34. Ka4 $142 R8xe3 35. fxe3) 34... Rb8+ {[%emt 0:00:30][%cal Be8b8,Bb8b2,Bb2f2,Bf2f1][%mdl 96] Skewer} 35. Kc5 {[%emt 0:00:30] [#]} Qxb2 {[%emt 0:00:30]} 36. Qxb2 {[%emt 0:00:30]} Rxb2 {[%emt 0:00:30]} 37. Nxc4 {[%emt 0:00:30]} Rxf2 {[%emt 0:00:30]} 38. d5 {[%emt 0:00:30]} Rexf1 {[%emt 0:00:30]} 39. Rxf1 {[%emt 0:00:30]} Rxf1 {[%emt 0:00:30] Weighted Error Value: White=1.28/Black=0.59} 0-1

[Event "13th Chennai Open 2022"]
[Site "Chennai"]
[Date "2022.06.23"]
[Round "7.8"]
[White "Stupak, Kirill"]
[Black "Pawar, Harshit"]
[Result "1-0"]
[ECO "B07"]
[WhiteElo "2440"]
[BlackElo "1961"]
[Annotator "TA"]
[PlyCount "127"]
[EventDate "2022.06.19"]
[EventType "swiss"]
[EventCountry "IND"]
[SourceTitle "playchess.com"]
[Source "ChessBase"]
[SourceQuality "1"]
[TimeControl "5400+30"]

{[%evp 11,127,23,23,10,7,19,23,20,18,7,9,0,0,0,0,0,31,0,0,-25,-33,-43,-15,-37,-14,-42,-56,-67,-71,-70,-78,-83,-86,-92,-79,-88,0,0,0,-114,-89,-85,-75,-84,0,-117,-118,-113,-99,-91,-94,-100,-93,-72,-53,-47,-77,-84,-10,-10,-22,-24,-24,-44,6,0,22,13,40,-18,68,63,126,8,56,0,0,0,145,56,418,144,114,53,62,62,153,148,206,213,229,213,321,312,264,301,400,399,363,384,1166,1168,1100,1112,29994,576,599,531,463,237,542,560,972,961,953,931,837,759]} 1. e4 c5 2. c3 d6 3. d4 Nf6 4. Bd3 e5 5. dxe5 dxe5 6. Nf3 Nc6 {[%cal Oc5c4]} 7. O-O {B07: Pirc Defence: Miscellaneous Systems.} a6 8. a4 Be7 9. Qe2 {White has an edge.} Qc7 10. h3 O-O 11. Bg5 Nh5 12. Be3 Be6 13. Nbd2 Rad8 {[#]} 14. Rfd1 $146 ({Predecessor:} 14. Bc4 Bxc4 15. Nxc4 h6 16. a5 Nf4 17. Bxf4 exf4 18. Nb6 Bd6 19. Rfd1 Qe7 20. Nd2 {0-1 (42) Smirnov,P (2422)-Landa,K (2542) Tomsk 1999}) 14... Na5 15. Bc2 g6 16. Nh2 Rd7 (16... Kg7 {looks sharper.} 17. Nhf3 Rfe8 18. Ng5 Bxg5 19. Bxg5 Nf4) 17. Ng4 Rfd8 18. Nh6+ Kh8 19. Qf3 Nf4 20. Ng4 {[%cal Oh3h4]} f6 21. Nh2 Kg7 22. Nhf1 Nd3 23. b3 Nb2 (23... Nf4 $17) 24. Rdb1 $11 Nd3 25. h4 (25. Rd1 $1 $11) 25... h5 {White must now prevent ...Bg4.} 26. g3 Bg4 27. Qh1 {[#]} Be6 (27... Nf4 $1 $17 {Hoping for ...Ne2+.} 28. f3 (28. gxf4 exf4 29. Nc4 Nxc4 $17) 28... Nh3+ 29. Kh2 Be6) 28. f3 (28. Qf3 $11) 28... c4 29. b4 {Against Bc5} Nb3 30. Nxb3 cxb3 31. Bxb3 Bxb3 32. Rxb3 Qc4 33. Nd2 Qe6 {[%cal Od3f4]} 34. Qh2 {[#]} a5 (34... f5 $1 $17 {[%cal Of5f4] And now ...f4! would win.} 35. exf5 gxf5) 35. bxa5 Bc5 {Prevents Rb6.} 36. Bxc5 Nxc5 37. Rb2 Nd3 (37... Rd3 $15) 38. Rc2 Qc6 39. Nf1 $1 Nc5 40. Ne3 (40. Qe2 $14) 40... Rd3 (40... f5 $11) 41. Qf2 $14 Nb3 (41... Qc7 $14) 42. Re1 ({Only move:} 42. Rb1 $16 Nc5 43. Nd5) 42... Qxa4 (42... Rxc3 $11 {is more appropriate.} 43. Rxc3 Qxc3) 43. Ra2 ({White should play} 43. Nd5 $14) 43... Qc6 $11 44. Nd5 Qc4 (44... R8xd5 $11 45. exd5 Qxc3) 45. Qb6 (45. Rb1 $16) 45... Rf8 $2 {[%mdl 8192]} (45... Qc5+ $14 46. Kg2 Qxb6 47. axb6 Rd7) 46. Rf2 $2 (46. Qxb7+ $18 {and the rest is easy.} Rf7 47. Qb4 Qxb4 48. cxb4) 46... Rf7 $16 {[#]} 47. Qb4 {Prevents Qa4. White is more active.} (47. Kg2 $1 $16) 47... Qxb4 $14 48. cxb4 f5 {Black is now going downhill.} (48... Nd4 $14 49. Kg2 Rb3) 49. Re3 $36 {[%mdl 2048] Keeping Black busy.} fxe4 (49... Rxe3 $16 {keeps fighting.} 50. Nxe3 Nd4) 50. fxe4 $18 Rd1+ 51. Kg2 Rxf2+ (51... Rd2 $142 52. Rxd2 Nxd2) 52. Kxf2 {[%mdl 4096] Endgame KRN-KRN} Nd4 53. Rc3 {Threatens to win with Rc7+.} Rd2+ 54. Ke3 Rg2 55. Rc7+ Kh8 $2 (55... Kh6 56. Rxb7 Rxg3+ 57. Kd2 g5) 56. Rxb7 {White threatens Nf6 and mate.} Rxg3+ 57. Kd2 {Threatening mate with Nf6.} Ra3 58. Nc7 (58. Nf6 $142 Nf3+ 59. Kc1 Ng5 60. hxg5 Rc3+ 61. Kd2 Rc2+ 62. Kxc2 h4 63. Rh7#) 58... Nb3+ 59. Ke2 {aiming for a6.} Nd4+ 60. Kd1 Ra1+ $2 (60... g5 {is more resistant.}) 61. Kd2 {White is clearly winning.} Nb3+ 62. Kc2 Nxa5 63. Ra7 Ra2+ 64. Kb1 {[%emt 0:32:00] Weighted Error Value: White=0.46/Black=0.56} 1-0

[Event "13th Chennai Open 2022"]
[Site "Chennai"]
[Date "2022.06.23"]
[Round "7.9"]
[White "Srijit Paul"]
[Black "Daakshin Arun"]
[Result "0-1"]
[ECO "B90"]
[WhiteElo "2399"]
[BlackElo "2016"]
[Annotator "TA"]
[PlyCount "48"]
[EventDate "2022.06.19"]
[EventType "swiss"]
[EventCountry "IND"]
[SourceTitle "playchess.com"]
[Source "ChessBase"]
[SourceQuality "1"]
[TimeControl "5400+30"]

{[%evp 11,48,11,36,20,22,5,21,0,7,-19,-45,-63,0,-21,-23,-97,-97,-190,-116,-196,-143,-177,-178,-174,-172,-172,-171,-175,-173,-237,-231,-645,-612,-29987,-29988,-29988,-29989,-29997,-29998]} 1. e4 {[%emt 1:31:00]} c5 {[%emt 0:00:06]} 2. Nf3 {[%emt 0:00:00]} d6 {[%emt 0:00:05]} 3. d4 {[%emt 0:00:00]} cxd4 {[%emt 0:00:06]} 4. Nxd4 {[%emt 0:00:00]} Nf6 {[%emt 0:00:07]} 5. Nc3 {[%emt 0:00:00]} a6 {[%emt 0:00:03]} 6. h3 {[%emt 0:00:00]} Nc6 {[%emt 0:00:30]} 7. g4 {[%emt 0:00:00] B90: Sicilian Najdorf: Unusual White 6th moves, 6 Be3 Ng4 and 6 Be3 e5.} g6 {[%emt 0:00:20]} 8. Bg2 {[%emt 0:00:00]} Nxd4 {[%emt 0:01:32]} 9. Qxd4 {[%emt 0:00:00] The position is equal.} Bg7 $1 {[%emt 0:00:28]} 10. g5 {[%emt 0:00:00]} Nh5 {[%emt 0:00:58]} 11. Qd3 {[%emt 0:00:00]} Be6 {[%emt 0:05:12]} (11... Bd7 $15) 12. Bf3 {[%emt 0:00:00] [#]} Rc8 $146 {[%emt 0:03:57]} ({Predecessor:} 12... b5 13. Bxh5 gxh5 14. Be3 Bc4 15. Qd2 Rc8 16. Bd4 Bxd4 17. Qxd4 e5 18. Qd2 b4 {0-1 (42) Aharon,O (2118)-Schiendorfer,E (2240) Vung Tau 2008}) 13. Bd2 {[%emt 0:00:00]} (13. Nd5 $11 {remains equal.}) 13... Qb6 $1 $36 {[%emt 0:03:32][%mdl 2048] White is under strong pressure.} 14. Bxh5 {[%emt 0:00:00]} (14. Nd1 $17 {is a better defense.}) 14... gxh5 {[%emt 0:09:06]} (14... Qxb2 $19 15. Rb1 Rxc3 $1 16. Rxb2 Rxd3 17. cxd3 Bxb2) 15. Na4 {[%emt 0:00:00] [#]} (15. Rb1 $17 {was necessary.}) 15... Qc6 {[%emt 0:00:48]} (15... Qb5 $1 $19 {[%cal Rb5a4]} 16. Qxb5+ axb5) 16. Bc3 {[%emt 0:00:00]} Qxa4 {[%emt 0:06:07]} 17. Bxg7 {[%emt 0:00:00]} Rg8 {[%emt 0:00:29][%cal Bh8g8,Bg8g5,Bg5g2][%mdl 32]} 18. Bc3 {[%emt 0:00:00]} Rxg5 {[%emt 0:02:40]} 19. a3 {[%emt 0:00:00]} d5 {[%emt 0:07:28]} 20. f3 {[%emt 0:00:00]} (20. O-O-O {was worth a try.}) 20... Rg2 $19 {[%emt 0:07:49] ...d4 is the strong threat.} 21. O-O-O $2 {[%emt 0:00:00]} (21. Rd1) 21... d4 $1 {[%emt 0:01:28] Hoping for ...Rxc3.} 22. Bxd4 {[%emt 0:00:00]} Rcxc2+ {[%emt 0:00:07] Black mates.} 23. Kb1 {[%emt 0:00:00]} Bc4 {[%emt 0:00:27]} 24. Qe3 {[%emt 0:00:00] [#]} Rxb2+ $3 {[%emt 0:00:03][%mdl 512] Weighted Error Value: White=0.97/Black=0.10 (very precise)} 0-1